lending/lending_fUSD_20251018
["ID","MTS","AMOUNT","RATE_DAILY","PERIOD"]
[391724982,1760753446707,-151.0,0.00028223,30]
[391724983,1760753446716,-151.0,0.00028223,30]
[391724984,1760753446727,-151.0,0.00028223,30]
[391724985,1760753446736,-284.38862266,0.00028223,30]
[391724986,1760753446745,-151.0,0.00028223,30]
[391724987,1760753446755,-151.0,0.00028223,30]
[391724988,1760753446764,-151.0,0.00028223,30]
[391724989,1760753446773,-31857.8650334,0.00028223,2]
[391724990,1760753446783,-334.5472959,0.00028246,2]
[391724991,1760753446792,-287.61899177,0.00028246,2]
[391724992,1760753446801,-151.0,0.00028267,30]
[391724993,1760753446811,-151.0,0.00028267,30]
[391724994,1760753446821,-151.0,0.00028267,30]
[391724995,1760753446830,-151.0,0.00028267,30]
[391724996,1760753446840,-151.0,0.00028267,30]
[391724997,1760753446849,-151.0,0.00028267,30]
[391724998,1760753446859,-151.0,0.00028267,30]
[391724999,1760753446868,-272.913538,0.00028351,30]
[391725000,1760753446877,-152.314673,0.00028351,30]
[391725001,1760753446886,-151.0,0.00028351,30]
[391725002,1760753446895,-151.0,0.00028351,30]
[391725003,1760753446905,-151.0,0.00028351,30]
[391725004,1760753446915,-151.0,0.00028351,30]
[391725005,1760753446924,-151.0,0.00028351,30]
[391725006,1760753446934,-151.0,0.00028351,30]
[391725007,1760753446943,-151.0,0.00028351,30]
[391725008,1760753446952,-151.0,0.00028351,30]
[391725009,1760753446961,-151.0,0.00028351,30]
[391725010,1760753446971,-151.0,0.00028351,30]
[391725011,1760753446981,-151.0,0.00028351,30]
[391725012,1760753446990,-151.0,0.00028351,30]
[391725013,1760753446999,-151.0,0.00028351,30]
[391725014,1760753447008,-151.0,0.00028351,30]
[391725015,1760753447018,-152.035995,0.00028351,30]
[391725016,1760753447027,-177.726684,0.00028351,30]
[391725017,1760753447036,-898.28,0.000284,7]
[391725018,1760753447046,-8045.90370547,0.00028439,2]
[391725019,1760753447056,-855.13,0.00028483,120]
[391725020,1760753447065,-1195.33,0.00028493,4]
[391725021,1760753447075,-2000.0,0.00028516,5]
[391725022,1760753447085,-151.0,0.00028521,2]
[391725023,1760753447095,-10535.9730384,0.00028581,2]
[391725024,1760753447104,-381.36021451,0.00028595,10]
[391725025,1760753447114,-787.72,0.000286,2]
[391725026,1760753447123,-477.544422,0.00028612,2]
[391725027,1760753447133,-169.7,0.00028629,2]
[391725028,1760753447143,-213.82927506,0.00028649,2]
[391725029,1760753447152,-276.38,0.00028847,30]
[391725030,1760753447161,-169.7,0.00028858,2]
[391725031,1760753447171,-16503.08368437,0.00028888,2]
[391725032,1760753447180,-9602.63,0.000289,2]
[391725033,1760753447190,-7000.0,0.000289,2]
[391725034,1760753447199,-50502.5547258,0.00028977,2]
[391725035,1760753447208,-2000.0,0.00029,120]
[391725036,1760753447218,-161.78,0.00029,15]
[391725037,1760753447227,-2500.0,0.00029064,5]
[391725038,1760753447237,-155.77638202,0.00029069,2]
[391725039,1760753447246,-169.69019416,0.00029087,2]
[391725040,1760753447256,-166.66,0.00029088,2]
[391725041,1760753447265,-173.88429701,0.00029122,2]
[391725042,1760753447274,-312.99173461,0.00029122,2]
[391725043,1760753447284,-199.61994609,0.00029122,2]
[391725044,1760753447293,-180.10172467,0.00029136,3]
[391725045,1760753447303,-4358.0,0.00029228,5]
[391725046,1760753447312,-409.09406074,0.00029316,2]
[391725047,1760753447324,-898.28,0.000294,7]
[391725048,1760753447333,-264.39093766,0.000294,2]
[391725049,1760753447343,-437.58969756,0.00029436,12]
[391725050,1760753447354,-334.0,0.00029513,7]
[391725051,1760753447363,-1195.33,0.00029589,120]
[391725052,1760753447373,-2595.99345502,0.00029612,5]
[391725053,1760753447383,-346.92554585,0.00029615,2]
[391725054,1760753447394,-298.26089446,0.00029615,2]
[391725055,1760753447404,-747.8093786,0.00029616,2]
[391725056,1760753447413,-449.23373557,0.00029616,2]
[391725057,1760753447422,-300.0,0.00029639,9]
[391725058,1760753447432,-9602.63,0.000297,2]
[391725059,1760753447441,-3171.29706628,0.00029743,2]
[391725060,1760753447452,-334.0,0.00029773,2]
[391725061,1760753447461,-161.22808124,0.000298,2]
[391725062,1760753447471,-695.07,0.00029849,2]
[391725063,1760753447479,-1401.28,0.00029849,2]
[391725064,1760753447489,-695.27,0.00029849,2]
[391725065,1760753447498,-695.27,0.00029849,2]
[391725066,1760753447507,-151.0,0.00029899,30]
[391725067,1760753447517,-151.0,0.00029899,30]
[391725068,1760753447526,-151.0,0.00029899,30]
[391725069,1760753447535,-151.0,0.00029899,30]
[391725070,1760753447544,-151.0,0.00029899,30]
[391725071,1760753447553,-151.0,0.00029899,30]
[391725072,1760753447562,-172.195982,0.00029899,30]
[391725073,1760753447571,-151.0,0.00029899,30]
[391725074,1760753447580,-151.0,0.00029899,30]
[391725075,1760753447590,-151.0,0.00029899,30]
[391725076,1760753447599,-151.0,0.00029899,30]
[391725077,1760753447609,-151.0,0.00029899,30]
[391725078,1760753447618,-151.0,0.00029899,30]
[391725079,1760753447627,-151.0,0.00029899,30]
[391725080,1760753447636,-226.831342,0.00029899,30]
[391725081,1760753447646,-151.0,0.00029899,30]
[391725082,1760753447655,-151.0,0.00029899,30]
[391725083,1760753447664,-151.0,0.00029899,30]
[391725084,1760753447674,-151.0,0.00029899,30]
[391725085,1760753447683,-151.0,0.00029899,30]
[391725086,1760753447692,-151.0,0.00029899,30]
[391725087,1760753447702,-151.0,0.00029899,30]
[391725088,1760753447711,-151.0,0.00029899,30]
[391725089,1760753447720,-152.780022,0.00029899,30]
[391725090,1760753447730,-152.174749,0.00029899,30]
[391725091,1760753447739,-151.0,0.00029899,30]
[391725092,1760753447749,-151.0,0.00029899,30]
[391725093,1760753447758,-151.0,0.00029899,30]
[391725094,1760753447767,-342.12108,0.00029899,30]
[391725095,1760753447776,-342.12108,0.00029899,30]
[391725096,1760753447787,-342.12108,0.00029899,30]
[391725097,1760753447797,-342.12108,0.00029899,30]
[391725098,1760753447806,-276.486004,0.00029899,30]
[391725099,1760753447819,-151.0,0.00029899,30]
[391725100,1760753447828,-151.0,0.00029899,30]
[391725101,1760753447838,-151.0,0.00029899,30]
[391725102,1760753447848,-151.0,0.00029899,30]
[391725103,1760753447857,-151.0,0.00029899,30]
[391725104,1760753447867,-151.0,0.00029899,30]
[391725105,1760753447882,-151.0,0.00029899,30]
[391725106,1760753447891,-151.0,0.00029899,14]
[391725107,1760753447900,-151.0,0.00029899,14]
[391725108,1760753447909,-151.0,0.00029899,30]
[391725109,1760753447919,-152.518706,0.00029899,30]
[391725110,1760753447928,-151.0,0.00029899,30]
[391725111,1760753447937,-151.0,0.00029899,30]
[391725112,1760753447947,-151.0,0.00029899,30]
[391725113,1760753447955,-151.0,0.00029899,30]
[391725114,1760753447965,-151.0,0.00029899,30]
[391725115,1760753447975,-151.0,0.00029899,30]
[391725116,1760753447984,-151.0,0.00029899,30]
[391725117,1760753447993,-256.090162,0.00029899,30]
[391725118,1760753448002,-151.0,0.00029899,30]
[391725119,1760753448012,-151.0,0.00029899,30]
[391725120,1760753448021,-151.0,0.00029899,30]
[391725121,1760753448031,-151.0,0.00029899,30]
[391725122,1760753448040,-151.0,0.00029899,30]
[391725123,1760753448050,-151.0,0.00029899,30]
[391725124,1760753448059,-151.0,0.00029899,30]
[391725125,1760753448069,-77525.7835482,0.000299,2]
[391725126,1760753448078,-787.72,0.000299,2]
[391725127,1760753448088,-5153.08,0.000299,7]
[391725128,1760753448098,-166.66,0.00029962,2]
[391725129,1760753448107,-2731.73356622,0.0003,120]
[391725130,1760753448117,-158.0,0.0003,14]
[391725131,1760753448127,-212.02291941,0.00030075,2]
[391725132,1760753448138,-8045.90370547,0.00030116,2]
[391725133,1760753448147,-668.48960045,0.0003013,120]
[391725134,1760753448157,-699.64,0.00030137,2]
[391725135,1760753448167,-14938.6072903,0.00030277,2]
[391725136,1760753448176,-494.03098333,0.00030278,13]
[391725137,1760753448186,-200.0,0.00030298,2]
[391725138,1760753448195,-912.8604295,0.00030364,2]
[391725139,1760753448205,-332.0,0.00030379,7]
[391725140,1760753448214,-332.0,0.00030386,2]
[391725141,1760753448223,-158.0,0.00030411,14]
[391725142,1760753448233,-334.0,0.00030424,2]
[391725143,1760753448243,-228.88901439,0.00030473,2]
[391725144,1760753448252,-332.0,0.00030481,2]
[391725145,1760753448262,-898.28,0.000305,30]
[391725146,1760753448272,-9602.63,0.000305,2]
[391725147,1760753448282,-34667.58568717,0.00030513,30]
[391725148,1760753448291,-404.19242946,0.00030513,15]
[391725149,1760753448301,-152.0,0.00030558,3]
[391725150,1760753448311,-9999.99,0.0003062,2]
[391725151,1760753448326,-150.99,0.0003062,2]
[391725152,1760753448335,-299.99,0.0003062,12]
[391725153,1760753448346,-19677.02,0.0003062,2]
[391725154,1760753448358,-1143.81,0.0003062,2]
[391725155,1760753448367,-9999.99,0.0003062,2]
[391725156,1760753448377,-1181.74,0.0003062,2]
[391725157,1760753448386,-17187.68,0.0003062,10]
[391725158,1760753448397,-3755.02,0.0003062,2]
[391725159,1760753448407,-151.0,0.00030621,30]
[391725160,1760753448416,-151.0,0.00030621,30]
[391725161,1760753448425,-151.0,0.00030621,30]
[391725162,1760753448435,-151.0,0.00030621,30]
[391725163,1760753448444,-151.0,0.00030621,30]
[391725164,1760753448453,-151.0,0.00030621,30]
[391725165,1760753448463,-151.0,0.00030621,30]
[391725166,1760753448473,-151.0,0.00030621,30]
[391725167,1760753448482,-151.0,0.00030621,30]
[391725168,1760753448491,-177.162062,0.00030621,30]
[391725169,1760753448500,-337.24535991,0.00030655,2]
[391725170,1760753448509,-1195.33,0.00030684,120]
[391725171,1760753448519,-5153.08,0.000307,7]
[391725172,1760753448528,-166.66,0.00030836,2]
[391725173,1760753448537,-7000.0,0.000309,2]
[391725174,1760753448547,-332.09,0.000309,7]
[391725175,1760753448557,-331.08,0.000309,7]
[391725176,1760753448566,-359.76179104,0.00030984,2]
[391725177,1760753448577,-309.29654756,0.00030984,2]
[391725178,1760753448587,-153.0,0.00031,120]
[391725179,1760753448597,-1006.23033143,0.00031,2]
[391725180,1760753448607,-2000.0,0.00031,6]
[391725181,1760753448617,-2354.258519,0.0003101,6]
[391725182,1760753448626,-3333.253837,0.00031057,2]
[391725183,1760753448635,-4730.41377016,0.00031081,3]
[391725184,1760753448645,-150.67,0.00031082,2]
[391725185,1760753448654,-168.24,0.00031082,2]
[391725186,1760753448663,-300.0,0.00031082,2]
[391725187,1760753448673,-150.63,0.00031082,2]
[391725188,1760753448683,-150.0,0.00031082,2]
[391725189,1760753448692,-546.7,0.00031082,2]
[391725190,1760753448702,-168.24,0.00031082,2]
[391725191,1760753448711,-150.0,0.00031082,2]
[391725192,1760753448721,-168.24,0.00031082,2]
[391725193,1760753448730,-150.0,0.00031082,2]
[391725194,1760753448739,-546.7,0.00031082,2]
[391725195,1760753448749,-150.0,0.00031082,2]
[391725196,1760753448759,-546.7,0.00031082,2]
[391725197,1760753448768,-150.0,0.00031082,2]
[391725198,1760753448778,-168.24,0.00031082,2]
[391725199,1760753448787,-332.0,0.00031096,2]
[391725200,1760753448796,-787.72,0.000311,2]
[391725201,1760753448806,-550.66110508,0.00031119,15]
[391725202,1760753448815,-4388.06741618,0.00031121,2]
[391725203,1760753448826,-203.6866938,0.00031153,2]
[391725204,1760753448836,-168.0,0.00031193,2]
[391725205,1760753448845,-332.0,0.00031197,2]
[391725206,1760753448855,-1000.0,0.00031245,2]
[391725207,1760753448864,-332.0,0.00031263,2]
[391725208,1760753448874,-855.13,0.00031331,120]
[391725209,1760753448883,-213.82927506,0.00031339,2]
[391725210,1760753448893,-332.0,0.00031371,7]
[391725211,1760753448903,-725.01476384,0.000314,30]
[391725212,1760753448912,-9602.63,0.000314,2]
[391725213,1760753448922,-11949.80172048,0.0003143,4]
[391725214,1760753448931,-168.0,0.00031504,2]
[391725215,1760753448941,-5153.08,0.000316,7]
[391725216,1760753448951,-158.0,0.00031644,14]
[391725217,1760753448960,-168.0,0.00031669,2]
[391725218,1760753448970,-1007.0,0.000317,2]
[391725219,1760753448984,-21704.54690313,0.0003177,2]
[391725220,1760753448995,-1195.33,0.0003178,120]
[391725221,1760753449005,-8045.90370547,0.00031793,2]
[391725222,1760753449015,-2000.0,0.000318,9]
[391725223,1760753449024,-1000.0,0.000318,60]
[391725224,1760753449034,-168.0,0.00031801,2]
[391725225,1760753449043,-2000.0,0.0003181,9]
[391725226,1760753449053,-168.0,0.00031818,2]
[391725227,1760753449062,-2000.0,0.0003182,9]
[391725228,1760753449073,-200.0,0.00031826,2]
[391725229,1760753449082,-2436.375881,0.0003183,9]
[391725230,1760753449092,-261.99522517,0.00031892,2]
[391725231,1760753449102,-152.79422157,0.00031892,2]
[391725232,1760753449111,-217.30000513,0.00031892,2]
[391725233,1760753449121,-150.63504133,0.00031892,2]
[391725234,1760753449130,-150.0,0.00031892,2]
[391725235,1760753449140,-500.0,0.00031892,2]
[391725236,1760753449150,-500.0,0.00031892,2]
[391725237,1760753449160,-500.0,0.00031892,2]
[391725238,1760753449169,-500.0,0.00031892,2]
[391725239,1760753449179,-500.0,0.00031892,2]
[391725240,1760753449189,-403.8412241,0.00031892,2]
[391725241,1760753449198,-153.27091503,0.00031892,2]
[391725242,1760753449208,-500.0,0.00031892,2]
[391725243,1760753449218,-500.0,0.00031892,2]
[391725244,1760753449228,-500.0,0.00031892,2]
[391725245,1760753449238,-150.0,0.00031892,2]
[391725246,1760753449248,-500.0,0.00031892,2]
[391725247,1760753449257,-150.0,0.00031892,2]
[391725248,1760753449267,-150.0,0.00031892,2]
[391725249,1760753449277,-500.0,0.00031892,2]
[391725250,1760753449286,-546.7,0.00031904,2]
[391725251,1760753449296,-167.99,0.00031904,2]
[391725252,1760753449307,-150.0,0.00031904,2]
[391725253,1760753449318,-546.7,0.00031904,2]
[391725254,1760753449328,-413.65,0.00031904,2]
[391725255,1760753449338,-546.7,0.00031904,2]
[391725256,1760753449348,-413.65,0.00031904,2]
[391725257,1760753449359,-546.7,0.00031904,2]
[391725258,1760753449369,-413.65,0.00031904,2]
[391725259,1760753449379,-413.65,0.00031904,2]
[391725260,1760753449389,-546.7,0.00031904,2]
[391725261,1760753449399,-413.65,0.00031904,2]
[391725262,1760753449409,-546.7,0.00031904,2]
[391725263,1760753449419,-413.65,0.00031904,2]
[391725264,1760753449428,-545.2,0.00031904,2]
[391725265,1760753449438,-413.65,0.00031904,2]
[391725266,1760753449448,-402.95,0.00031904,2]
[391725267,1760753449458,-409.09406074,0.00031913,2]
[391725268,1760753449468,-150.0,0.00031947,2]
[391725269,1760753449478,-500.0,0.00031947,2]
[391725270,1760753449488,-500.0,0.00031947,2]
[391725271,1760753449499,-501.55365993,0.00031947,2]
[391725272,1760753449508,-500.0,0.00031947,2]
[391725273,1760753449518,-500.0,0.00031947,2]
[391725274,1760753449528,-607.46165315,0.0003196,17]
[391725275,1760753449538,-1683.1846532,0.00032,120]
[391725276,1760753449548,-3886.426965,0.00032,10]
[391725277,1760753449558,-2000.0,0.00032,10]
[391725278,1760753449568,-2000.0,0.00032,10]
[391725279,1760753449579,-160.0,0.00032,120]
[391725280,1760753449588,-160.0,0.00032,120]
[391725281,1760753449598,-150.87095855,0.00032002,2]
[391725282,1760753449608,-505.54322822,0.00032002,2]
[391725283,1760753449617,-500.0,0.00032002,2]
[391725284,1760753449627,-500.0,0.00032002,2]
[391725285,1760753449637,-500.0,0.00032002,2]
[391725286,1760753449647,-3442.823149,0.0003201,10]
[391725287,1760753449656,-2000.0,0.0003201,10]
[391725288,1760753449665,-2000.0,0.0003202,10]
[391725289,1760753449675,-2164.234723,0.0003203,10]
[391725290,1760753449684,-500.0,0.00032056,2]
[391725291,1760753449693,-500.0,0.00032056,2]
[391725292,1760753449702,-325.92576589,0.00032056,2]
[391725293,1760753449712,-151.0,0.00032067,30]
[391725294,1760753449721,-151.0,0.00032067,30]
[391725295,1760753449731,-151.0,0.00032067,30]
[391725296,1760753449740,-159.195812,0.00032067,30]
[391725297,1760753449764,-151.0,0.00032067,30]
[391725298,1760753449775,-151.0,0.00032067,30]
[391725299,1760753449786,-151.0,0.00032067,30]
[391725300,1760753449796,-151.0,0.00032067,30]
[391725301,1760753449806,-151.0,0.00032067,30]
[391725302,1760753449816,-151.0,0.00032067,30]
[391725303,1760753449827,-151.0,0.00032067,30]
[391725304,1760753449837,-2880.8161185,0.0003207,120]
[391725305,1760753449848,-151.0,0.00032078,30]
[391725306,1760753449858,-151.0,0.00032078,30]
[391725307,1760753449869,-151.0,0.00032078,30]
[391725308,1760753449880,-151.0,0.00032078,30]
[391725309,1760753449890,-151.0,0.00032078,30]
[391725310,1760753449900,-151.0,0.00032078,30]
[391725311,1760753449911,-151.0,0.00032078,30]
[391725312,1760753449923,-151.0,0.00032078,30]
[391725313,1760753449934,-151.0,0.00032078,30]
[391725314,1760753449944,-151.0,0.00032078,30]
[391725315,1760753449957,-151.673395,0.00032078,30]
[391725316,1760753449969,-152.438818,0.00032078,30]
[391725317,1760753449989,-151.0,0.00032078,30]
[391725318,1760753450003,-151.0,0.00032078,30]
[391725319,1760753450016,-151.0,0.00032078,30]
[391725320,1760753450028,-151.975845,0.00032078,30]
[391725321,1760753450039,-151.0,0.00032078,30]
[391725322,1760753450052,-151.0,0.00032078,30]
[391725323,1760753450064,-151.0,0.00032078,30]
[391725324,1760753450083,-151.0,0.00032078,30]
[391725325,1760753450096,-151.0,0.00032078,30]
[391725326,1760753450109,-342.12108,0.00032078,30]
[391725327,1760753450128,-342.12108,0.00032078,30]
[391725328,1760753450142,-342.12108,0.00032078,30]
[391725329,1760753450154,-342.12108,0.00032078,30]
[391725330,1760753450166,-1977.0,0.00032078,30]
[391725331,1760753450179,-151.0,0.00032081,30]
[391725332,1760753450192,-151.0,0.00032081,30]
[391725333,1760753450205,-151.0,0.00032081,30]
[391725334,1760753450219,-151.0,0.00032081,30]
[391725335,1760753450233,-151.0,0.00032081,30]
[391725336,1760753450245,-151.0,0.00032081,30]
[391725337,1760753450257,-151.0,0.00032081,30]
[391725338,1760753450270,-151.0,0.00032081,14]
[391725339,1760753450282,-213.105491,0.00032081,14]
[391725340,1760753450294,-151.0,0.00032083,30]
[391725341,1760753450306,-151.0,0.00032083,30]
[391725342,1760753450329,-151.0,0.00032083,30]
[391725343,1760753450342,-151.0,0.00032083,30]
[391725344,1760753450356,-151.0,0.00032083,30]
[391725345,1760753450583,-151.0,0.00032083,30]
[391725346,1760753450595,-165.504682,0.00032083,30]
[391725347,1760753450605,-151.546922,0.00032083,30]
[391725348,1760753450614,-151.787228,0.00032083,30]
[391725349,1760753450624,-151.0,0.00032083,30]
[391725350,1760753450634,-150.9492193,0.00032083,20]
[391725351,1760753450644,-500.0,0.00032083,30]
[391725352,1760753450657,-6000.0,0.00032086,60]
[391725353,1760753450666,-1610.13106891,0.00032088,15]
[391725354,1760753450675,-76853.35294147,0.0003209,2]
[391725355,1760753450685,-1091.0,0.0003209,10]
[391725356,1760753450695,-300.69544419,0.0003209,30]
[391725357,1760753450704,-168.0,0.00032093,2]
[391725358,1760753450714,-964.0,0.000321,2]
[391725359,1760753450725,-5061.79264072,0.00032108,2]
[391725360,1760753450734,-5000.0,0.00032108,2]
[391725361,1760753450744,-5000.0,0.00032108,2]
[391725362,1760753450754,-5000.0,0.00032108,2]
[391725363,1760753450764,-5000.0,0.00032108,2]
[391725364,1760753450774,-500.0,0.00032111,2]
[391725365,1760753450785,-414.61251078,0.00032111,2]
[391725366,1760753450794,-168.0,0.00032141,2]
[391725367,1760753450803,-500.0,0.00032166,2]
[391725368,1760753450813,-168.0,0.00032198,2]
[391725369,1760753450824,-300.0,0.000322,2]
[391725370,1760753450833,-442.0,0.000322,2]
[391725371,1760753450846,-500.0,0.00032221,2]
[391725372,1760753450856,-2590.0,0.0003226,2]
[391725373,1760753450865,-6446.0,0.0003226,2]
[391725374,1760753450875,-559.43,0.0003226,2]
[391725375,1760753450884,-6437.0,0.0003226,2]
[391725376,1760753450893,-500.0,0.00032276,2]
[391725377,1760753450903,-877.37453512,0.000323,2]
[391725378,1760753450914,-787.72,0.000323,2]
[391725379,1760753450923,-500.0,0.0003233,2]
[391725380,1760753450933,-373.07297731,0.00032353,2]
[391725381,1760753450942,-320.74051982,0.00032353,2]
[391725382,1760753450952,-775.47832561,0.00032355,2]
[391725383,1760753450961,-500.0,0.00032357,30]
[391725384,1760753450971,-450.0,0.00032379,16]
[391725385,1760753450980,-500.0,0.00032385,2]
[391725386,1760753450990,-5153.08,0.000324,7]
[391725387,1760753450999,-5888.0,0.00032411,2]
[391725388,1760753451012,-5407.0,0.00032416,2]
[391725389,1760753451022,-500.0,0.0003244,2]
[391725390,1760753451031,-500.0,0.00032495,2]
[391725391,1760753451042,-5012.83672828,0.00032507,2]
[391725392,1760753451054,-623.64114828,0.0003255,2]
[391725393,1760753451063,-585.37,0.000326,30]
[391725394,1760753451074,-500.0,0.00032631,30]
[391725395,1760753451084,-152.0,0.000327,120]
[391725396,1760753451093,-32323.69195133,0.00032748,5]
[391725397,1760753451103,-151.0,0.00032748,30]
[391725398,1760753451112,-151.0,0.00032748,30]
[391725399,1760753451121,-151.0,0.00032748,30]
[391725400,1760753451131,-151.0,0.00032748,30]
[391725401,1760753451140,-195.748025,0.00032748,30]
[391725402,1760753451149,-151.0,0.00032748,30]
[391725403,1760753451159,-151.0,0.00032748,30]
[391725404,1760753451169,-151.0,0.00032748,30]
[391725405,1760753451178,-151.0,0.00032748,30]
[391725406,1760753451188,-203.957772,0.00032748,30]
[391725407,1760753451198,-4742.17023011,0.000328,2]
[391725408,1760753451207,-153.0,0.000328,120]
[391725409,1760753451218,-664.41753468,0.00032802,19]
[391725410,1760753451229,-1195.33,0.00032876,120]
[391725411,1760753451240,-338.64,0.00032877,2]
[391725412,1760753451250,-699.64,0.00032877,2]
[391725413,1760753451260,-166.70773512,0.00032877,2]
[391725414,1760753451270,-404.19242946,0.00032881,15]
[391725415,1760753451280,-7000.0,0.000329,2]
[391725416,1760753451290,-500.0,0.00032905,30]
[391725417,1760753451299,-1509.25903709,0.00033,2]
[391725418,1760753451310,-1530.45005632,0.00033,2]
[391725419,1760753451321,-150.81024776,0.00033,2]
[391725420,1760753451330,-544.282314,0.00033,14]
[391725421,1760753451339,-526.411781,0.00033,8]
[391725422,1760753451350,-184.05675,0.00033043,2]
[391725423,1760753451359,-948.66,0.00033068,2]
[391725424,1760753451368,-741.03,0.00033068,2]
[391725425,1760753451377,-1401.65,0.00033068,2]
[391725426,1760753451386,-567.41,0.00033068,2]
[391725427,1760753451398,-2196.0,0.00033098,2]
[391725428,1760753451407,-375.23,0.00033165,2]
[391725429,1760753451416,-500.0,0.00033179,30]
[391725430,1760753451426,-152.0,0.00033204,4]
[391725431,1760753451435,-158.0,0.00033226,30]
[391725432,1760753451453,-150.0,0.00033262,2]
[391725433,1760753451465,-151.0,0.00033416,30]
[391725434,1760753451474,-247.085158,0.00033416,30]
[391725435,1760753451484,-195.565626,0.00033416,30]
[391725436,1760753451494,-258.910321,0.00033416,30]
[391725437,1760753451503,-151.0,0.00033416,30]
[391725438,1760753451513,-500.0,0.00033453,30]
[391725439,1760753451522,-8045.90370547,0.0003347,2]
[391725440,1760753451531,-1189.84483521,0.000335,2]
[391725441,1760753451541,-787.72,0.000335,2]
[391725442,1760753451551,-1091.0,0.0003352,5]
[391725443,1760753451560,-151.0,0.00033546,30]
[391725444,1760753451571,-151.0,0.00033546,30]
[391725445,1760753451581,-151.0,0.00033546,30]
[391725446,1760753451590,-186.762803,0.00033546,30]
[391725447,1760753451600,-342.12108,0.00033546,30]
[391725448,1760753451609,-342.12108,0.00033546,30]
[391725449,1760753451619,-342.12108,0.00033546,30]
[391725450,1760753451628,-342.121089,0.00033546,30]
[391725451,1760753451638,-151.0,0.00033546,30]
[391725452,1760753451647,-151.0,0.00033546,30]
[391725453,1760753451656,-152.782393,0.00033546,30]
[391725454,1760753451666,-151.0,0.00033546,30]
[391725455,1760753451675,-151.0,0.00033546,30]
[391725456,1760753451684,-151.0,0.00033546,30]
[391725457,1760753451694,-151.0,0.00033546,30]
[391725458,1760753451703,-151.0,0.00033546,14]
[391725459,1760753451712,-2196.0,0.00033556,7]
[391725460,1760753451721,-152.0,0.000336,120]
[391725461,1760753451731,-898.28,0.000336,30]
[391725462,1760753451741,-898.28,0.000336,30]
[391725463,1760753451750,-898.28,0.000336,30]
[391725464,1760753451760,-492.370403,0.0003362,2]
[391725465,1760753451770,-721.51614723,0.00033643,21]
[391725466,1760753451779,-956.68,0.00033712,2]
[391725467,1760753451788,-613.78,0.00033712,2]
[391725468,1760753451797,-204.38835906,0.00033722,2]
[391725469,1760753451807,-332.60791905,0.00033722,2]
[391725470,1760753451816,-500.0,0.00033727,30]
[391725471,1760753451827,-2197.0,0.00033735,2]
[391725472,1760753451837,-9602.63,0.000338,2]
[391725473,1760753451847,-276.38,0.00033828,120]
[391725474,1760753451857,-1195.33,0.00033972,120]
[391725475,1760753451867,-173.99624243,0.00034,30]
[391725476,1760753451876,-976.96,0.00034,2]
[391725477,1760753451886,-19999.999999,0.00034,30]
[391725478,1760753451895,-166.38,0.00034,27]
[391725479,1760753451904,-5153.08,0.00034,14]
[391725480,1760753451914,-500.0,0.00034001,30]
[391725481,1760753451923,-212.02291941,0.00034017,6]